bitfinex/quotes_ETHUSD_20240821
["timestamp","ask_amount","ask_price","bid_price","bid_amount"]
[1724256749476,7.68018,2604.1,2604.0,0.17995715]
[1724256749676,3.84054,2603.8,2603.5,2.3439]
[1724256749977,3.84054,2603.8,2602.8,3.84198]
[1724256749978,3.84105,2603.5,2602.8,2.4864]
[1724256750179,3.84085,2603.6,2602.9,3.84185]
[1724256750617,3.84106,2603.5,2602.9,3.84185]
[1724256750816,7.44,2603.7,2603.2,3.84141]
[1724256751023,7.44,2603.7,2603.3,2.3113]
[1724256751220,7.44,2603.7,2603.3,6.15257]
[1724256751426,7.44,2603.7,2603.4,3.8411]
[1724256751722,18.58493,2604.0,2603.4,3.8411]
[1724256751723,3.84033,2604.0,2603.4,3.8411]
[1724256751892,35.16737,2604.4,2603.5,3.84091]
[1724256751893,6.83973,2604.4,2603.5,3.84091]
[1724256752088,3.83989,2604.3,2603.7,3.84059]
[1724256752277,3.8401,2604.1,2603.5,3.84085]
[1724256752478,3.83999,2604.2,2603.5,4.5560017]
[1724256752678,3.83999,2604.2,2603.6,3.84074]
[1724256752979,3.84012,2604.1,2603.5,8.3968917]
[1724256753128,3.84012,2604.1,2603.5,4.5560017]
[1724256753693,3.84012,2604.1,2603.6,0.17486113]
[1724256754015,3.0,2604.4,2603.9,3.8403]
[1724256754220,3.83952,2604.5,2603.9,7.6806]
[1724256754390,3.83945,2604.6,2604.0,0.17443368]
[1724256754585,3.83945,2604.6,2604.1,3.91688591]
[1724256754815,3.83945,2604.6,2604.2,2.3659]
[1724256755143,3.83951,2604.5,2604.2,0.17422001]
[1724256755455,3.8398,2604.3,2604.2,0.17422001]
[1724256755736,3.8398,2604.3,2603.7,3.84056]
[1724256756030,3.84001,2604.2,2603.7,3.84056]
[1724256756231,3.84018,2604.1,2603.8,0.17467049]
[1724256756449,3.83951,2604.5,2603.9,3.84038]
[1724256756450,3.83959,2604.5,2603.9,3.84038]
[1724256756590,3.8393,2604.7,2604.0,6.31512]
[1724256756936,3.8393,2604.7,2604.1,0.17434994]
[1724256757118,4.22323,2604.7,2604.1,0.17434994]
[1724256757314,3.83962,2604.5,2604.1,0.17434994]
[1724256758502,3.83967,2604.4,2604.1,0.17434994]
[1724256758911,3.83981,2604.3,2604.1,0.17434994]
[1724256759110,3.83995,2604.2,2604.1,0.17434994]
[1724256759309,3.84013,2604.1,2603.7,2.3026]
[1724256760242,3.84013,2604.1,2603.4,3.84098]
[1724256760243,8.064323,2604.1,2603.5,3.84095]
[1724256760404,4.224143,2604.1,2603.5,3.84095]
[1724256760656,4.224143,2604.1,2603.4,6.33852]
[1724256760837,2.672113,2604.1,2603.4,2.4974]
[1724256761038,3.84095,2603.6,2603.1,6.33894]
[1724256762182,7.6816,2603.7,2603.1,6.33887]
[1724256762478,3.8408,2603.7,2603.2,0.17544114]
[1724256762633,3.8408,2603.7,2603.2,4.01685114]
[1724256763092,3.84048,2603.9,2603.4,3.84112]
[1724256763244,3.84048,2603.9,2603.2,1.21101325]
[1724256763245,3.84032,2604.0,2603.2,5.05233325]
[1724256763439,3.84062,2603.8,2603.5,0.17512044]
[1724256763892,3.84062,2603.8,2603.2,4.87689211]
[1724256764186,3.84062,2603.8,2603.6,0.17501356]
[1724256764403,3.84062,2603.8,2603.3,3.8412]
[1724256764559,3.84035,2604.0,2603.7,0.17490669]
[1724256764903,7.68072,2604.0,2603.8,0.17479982]
[1724256765054,4.224385,2604.0,2603.8,0.17479982]
[1724256765254,4.224385,2604.0,2603.6,2.3922]
[1724256765800,4.224385,2604.0,2603.7,0.17490669]
[1724256766096,3.84039,2603.9,2603.4,3.84111]
[1724256766412,3.84055,2603.8,2603.4,3.84111]
[1724256766909,3.84039,2603.9,2603.4,3.84111]
[1724256767402,3.84039,2603.9,2603.4,3.84112]
[1724256767570,3.84017,2604.1,2603.4,1.007467]
[1724256767769,2.3399,2604.0,2603.2,3.84131]
[1724256767966,3.84071,2603.7,2603.1,2.3935]
[1724256768167,3.84071,2603.7,2603.0,3.84161]
[1724256768168,3.84079,2603.7,2603.0,3.84161]
[1724256768368,3.84106,2603.5,2603.0,7.68325]
[1724256768594,3.84106,2603.5,2603.0,3.84161]
[1724256768800,3.8412,2603.4,2602.9,6.15151]
[1724256769096,3.8412,2603.4,2602.9,6.766661]
[1724256769462,3.8412,2603.4,2602.9,10.608471]
[1724256770086,3.84084,2603.6,2603.1,3.84157]
[1724256770271,27.11,2603.9,2603.3,3.84117]
[1724256770478,30.9505,2603.9,2603.4,3.84102]
[1724256770677,3.84054,2603.8,2603.3,3.84117]
[1724256770873,30.9504,2603.9,2603.4,3.84111]
[1724256771398,3.84054,2603.8,2603.3,4.840403]
[1724256771809,3.8404,2603.9,2603.3,4.840403]
[1724256772011,3.84034,2604.0,2603.5,3.84088]
[1724256772723,3.84042,2603.9,2603.5,3.84088]
[1724256772871,3.84026,2604.0,2603.6,0.384088]
[1724256773216,30.95003,2604.2,2603.6,0.384088]
[1724256773217,11.28003,2604.2,2603.7,2.36]
[1724256773917,3.84025,2604.0,2603.6,0.384088]
[1724256774122,3.8405,2603.9,2603.4,2.36]
[1724256774272,3.84059,2603.8,2603.4,2.36]
[1724256774983,3.84059,2603.8,2603.2,3.8414]
[1724256774984,3.84103,2603.5,2603.1,2.4812]
[1724256775187,3.84103,2603.5,2603.2,0.17574608]
[1724256776205,3.84084,2603.6,2603.2,0.17574608]
[1724256776719,3.84106,2603.5,2603.2,0.17574608]
[1724256776951,3.84084,2603.6,2603.2,0.17574608]
[1724256777224,3.84069,2603.7,2603.2,3.84142]
[1724256777535,3.84069,2603.7,2603.3,0.17578241]
[1724256777736,2.4192,2604.0,2603.3,0.17578241]
[1724256777900,2.4192,2604.0,2603.3,3.84117]
[1724256777901,3.84056,2603.8,2603.3,3.84117]
[1724256778225,3.84056,2603.8,2603.4,0.17573097]
[1724256778796,7.68122,2603.8,2603.4,0.17573097]
[1724256778981,3.84056,2603.8,2603.4,0.17573097]
[1724256779398,3.84056,2603.8,2603.5,0.17555476]
[1724256779598,3.84056,2603.8,2603.3,3.84119]
[1724256779899,3.84056,2603.8,2603.4,0.17566165]
[1724256780197,3.84075,2603.7,2603.4,0.17566165]
[1724256780397,3.84098,2603.5,2603.0,2.3037]
[1724256780864,3.84076,2603.7,2603.2,3.84133]
[1724256781037,3.84076,2603.7,2603.3,0.1758009]
[1724256781352,3.84076,2603.7,2603.2,3.84133]
[1724256781502,7.68096,2603.9,2603.5,2.4631]
[1724256781859,3.84047,2603.9,2603.5,2.4631]
[1724256782015,3.84047,2603.9,2603.6,0.17548023]
[1724256782343,3.8404,2603.9,2603.6,0.17548023]
[1724256782922,3.8404,2603.9,2603.5,2.4631]
[1724256783132,3.8404,2603.9,2603.7,0.17537335]
[1724256783333,3.8404,2603.9,2603.5,2.4631]
[1724256783538,3.8404,2603.9,2603.8,0.17526649]
[1724256783852,3.8404,2603.9,2603.5,2.4631]
[1724256784223,3.8404,2603.9,2603.6,0.17548023]
[1724256784609,3.8404,2603.9,2603.5,6.30406]
[1724256784805,7.6809,2603.9,2603.5,2.4631]
[1724256785055,7.6809,2603.9,2603.6,0.17548023]
[1724256785218,3.8404,2603.9,2603.6,0.17548023]
[1724256785413,3.84055,2603.8,2603.6,0.17548023]
[1724256785649,3.84055,2603.8,2603.3,10.14223]
[1724256785952,3.84055,2603.8,2603.4,5.03098152]
[1724256786164,3.84021,2604.1,2603.4,5.03098152]
[1724256786457,7.68095,2603.9,2603.4,5.03098152]
[1724256786636,3.84055,2603.8,2603.4,0.17563852]
[1724256787018,3.84068,2603.7,2603.4,0.17563852]
[1724256787236,3.84085,2603.6,2603.4,0.17563852]
[1724256787435,3.84098,2603.5,2603.0,6.29461]
[1724256787751,3.84098,2603.5,2603.1,0.17595925]
[1724256789750,3.84134,2603.3,2603.1,0.17595925]
[1724256790160,3.84071,2603.7,2603.1,3.84148]
[1724256790446,7.68149,2603.7,2603.2,0.17585233]
[1724256790654,3.84092,2603.6,2603.2,0.17585233]
[1724256790811,6.29118,2603.9,2603.2,0.17585233]
[1724256791010,3.0,2603.8,2603.3,3.84113]
[1724256791254,3.0,2603.8,2603.4,0.17563852]
[1724256791613,6.84061,2603.8,2603.4,0.17563852]
[1724256791914,3.8407,2603.7,2603.4,0.17563852]
[1724256792309,3.84095,2603.6,2603.0,3.84162]
[1724256792714,3.84095,2603.6,2603.1,0.17595925]
[1724256793360,3.84113,2603.4,2603.1,0.17595925]
[1724256793712,3.84113,2603.4,2602.9,6.27737]
[1724256793912,3.84113,2603.4,2603.2,0.17585233]
[1724256794112,3.84113,2603.4,2602.9,6.27737]
[1724256794348,3.84113,2603.4,2603.3,0.17591643]
[1724256794554,3.84113,2603.4,2602.9,6.27737]
[1724256794756,7.011838,2603.4,2602.7,6.10126]
[1724256795066,3.84113,2603.4,2602.9,3.84185]
[1724256795570,3.84128,2603.3,2602.7,6.10121]
[1724256795710,3.84144,2603.2,2602.7,2.2592]
[1724256795909,0.384144,2603.1,2602.6,3.84217]
[1724256796161,7.68249,2603.4,2602.8,3.842]
[1724256796451,3.84123,2603.4,2602.8,6.2859]
[1724256796660,3.84131,2603.3,2602.8,6.2859]
[1724256797378,3.84144,2603.2,2602.8,2.4439]
[1724256797578,3.84144,2603.2,2602.7,3.84207]
[1724256797873,3.84149,2603.2,2602.6,3.84216]
[1724256798233,3.84149,2603.2,2602.6,7.68439]
[1724256798930,3.84149,2603.2,2602.7,3.84213]
[1724256799255,3.84187,2602.9,2602.3,0.3847]
[1724256799436,3.84223,2602.7,2602.2,0.3847]
[1724256799639,3.84275,2602.3,2602.2,0.3847]
[1724256799873,2.4615,2602.6,2602.2,0.3847]
[1724256800168,6.30384,2602.6,2602.2,0.3847]
[1724256801774,6.30384,2602.6,2602.0,4.22788]
[1724256802334,3.84261,2602.4,2602.0,0.3847]
[1724256802755,7.6853,2602.4,2602.0,0.3847]
[1724256803130,3.84261,2602.4,2602.0,0.3847]
[1724256804702,3.84289,2602.3,2602.1,0.3847]
[1724256804833,9.9404,2602.2,2602.1,0.3847]
[1724256805032,17.7633,2602.2,2602.1,0.3847]
[1724256805376,16.9204,2602.2,2602.1,0.3847]
[1724256805526,15.016708,2602.2,2602.1,0.3847]
[1724256806247,3.84322,2602.0,2601.4,3.844]
[1724256806572,7.68651,2602.0,2601.5,4.01666713]
[1724256806872,3.84322,2602.0,2601.5,4.01666713]
[1724256807381,3.84356,2601.8,2601.5,0.17273713]
[1724256807676,3.84356,2601.8,2601.2,7.68855]
[1724256807677,3.84356,2601.8,2601.3,3.84422]
[1724256807877,4.36912733,2602.0,2601.4,4.01768057]
[1724256808171,3.84338,2601.9,2601.4,4.01768057]
[1724256808727,3.84338,2601.9,2601.4,4.01763057]
[1724256808975,3.84351,2601.8,2601.4,0.17363057]
[1724256809145,3.84337,2601.9,2601.4,4.01769057]
[1724256809774,3.84365,2601.7,2601.4,0.17363057]
[1724256810168,3.84349,2601.8,2601.2,3.84423]
[1724256810366,3.84349,2601.8,2601.5,0.17352351]
[1724256810603,3.84349,2601.8,2601.3,3.84422]
[1724256810776,3.84349,2601.8,2601.6,0.17341647]
[1724256810999,3.84349,2601.8,2601.3,3.84422]
[1724256811186,3.84349,2601.8,2601.7,0.17330943]
[1724256811366,3.84349,2601.8,2601.3,3.84422]
[1724256812013,3.8433,2602.0,2601.5,3.84386]
[1724256812510,7.68658,2602.0,2601.6,0.17341647]
[1724256812715,3.84334,2601.9,2601.6,0.17341647]
[1724256813916,3.84349,2601.8,2601.1,6.10201]
[1724256814219,6.597379,2601.7,2601.2,3.84437]
[1724256814381,6.21303,2601.7,2601.2,3.84437]
[1724256814714,3.8438,2601.6,2601.1,2.2576]
[1724256814883,3.84401,2601.5,2601.0,3.84466]
[1724256815069,3.8438,2601.6,2601.0,7.68925]
[1724256815272,3.8438,2601.6,2601.1,3.84448]
[1724256815706,7.68771,2601.6,2601.1,3.84448]
[1724256816114,3.84394,2601.5,2600.9,2.3735]
[1724256816410,3.84394,2601.5,2601.0,3.84465]
[1724256818823,3.84445,2601.2,2600.7,6.30711]
[1724256818970,3.84445,2601.2,2600.7,2.462]
[1724256819171,3.84462,2601.1,2600.5,3.84532]
[1724256819412,4.478382,2601.1,2600.5,3.84532]
[1724256819618,8.323042,2601.1,2600.5,3.84532]
[1724256819822,3.84475,2601.0,2600.5,3.84532]
[1724256820172,3.84462,2601.1,2600.6,3.84524]
[1724256820522,2.493,2601.2,2600.7,0.17438019]
[1724256820523,3.84478,2601.0,2600.7,0.17438019]
[1724256820764,3.84497,2600.8,2600.7,0.17438019]
[1724256820963,4.229308,2600.9,2600.2,3.84584]
[1724256820964,3.84515,2600.7,2600.2,3.84584]
[1724256821130,3.84515,2600.7,2600.1,6.33829]
[1724256821318,3.84515,2600.7,2600.2,3.84574]
[1724256821517,3.84515,2600.7,2600.1,6.33829]
[1724256821845,3.84515,2600.7,2600.1,6.972119]
[1724256822439,3.84515,2600.7,2600.3,3.8457]
[1724256822783,3.84515,2600.7,2600.4,0.17582204]
[1724256823548,3.84497,2600.8,2600.4,0.17582204]
[1724256823747,11.669368,2600.9,2600.4,0.17582204]
[1724256823748,3.84519,2600.7,2600.4,0.17582204]
[1724256824081,3.84519,2600.7,2600.2,3.84585]
[1724256824384,3.84519,2600.7,2600.3,0.17602184]
[1724256824737,3.84519,2600.7,2600.1,6.33829]
[1724256824942,3.84527,2600.6,2600.4,0.1759147]
[1724256825138,3.84527,2600.6,2600.1,3.84589]
[1724256825340,3.450904,2600.7,2600.1,3.84589]
[1724256825655,3.450904,2600.7,2600.2,4.02187826]
[1724256825849,7.296014,2600.7,2600.2,4.02187826]
[1724256826255,3.84527,2600.6,2600.2,0.17613826]
[1724256826784,11.141244,2600.7,2600.2,0.17613826]
[1724256826944,11.141234,2600.7,2600.2,0.17613826]
[1724256827145,3.84534,2600.6,2600.2,0.17613826]
[1724256827439,3.84565,2600.4,2600.2,0.17613826]
[1724256827644,3.84565,2600.4,2599.7,3.84652]
[1724256827645,3.84571,2600.3,2599.7,3.84652]
[1724256827839,3.84571,2600.3,2599.8,4.02298646]
[1724256828086,3.84571,2600.3,2599.8,3.84635]
[1724256828648,3.84571,2600.3,2599.9,0.17652927]
[1724256829077,3.84549,2600.5,2600.0,2.363]
[1724256829292,3.84561,2600.4,2600.0,2.363]
[1724256829501,3.84561,2600.4,2600.1,0.17631492]
[1724256832487,3.84541,2600.5,2600.1,0.17631492]
[1724256833683,7.69091,2600.5,2600.1,0.17631492]
[1724256833887,3.84541,2600.5,2600.1,0.17631492]
[1724256834507,3.84557,2600.4,2600.1,0.17631492]
[1724256835757,3.84541,2600.5,2600.1,0.17631492]
[1724256835963,10.44,2600.9,2600.1,1.2781734]
[1724256836219,3.84529,2600.6,2600.1,4.02219492]
[1724256836410,3.84519,2600.7,2600.2,3.84581]
[1724256836711,3.84519,2600.7,2600.3,0.17644811]
[1724256837064,3.84519,2600.7,2600.3,3.8457]
[1724256837475,3.84519,2600.7,2600.4,0.17634097]
[1724256837870,3.84519,2600.7,2600.3,3.84569]
[1724256838073,3.84519,2600.7,2600.4,0.17634097]
[1724256838477,3.84497,2600.8,2600.4,0.17634097]
[1724256839358,11.28491,2600.9,2600.7,3.84511]
[1724256839359,7.44,2600.9,2600.7,3.84511]
[1724256839583,19.67,2601.0,2600.7,3.84511]
[1724256839787,7.44,2601.3,2600.9,3.8448]
[1724256840022,3.84447,2601.2,2600.8,0.17583833]
[1724256840225,3.84447,2601.2,2600.7,3.54585073]
[1724256840425,7.44,2601.3,2601.0,6.14789]
[1724256840608,7.44,2601.3,2601.0,2.3033]
[1724256840821,7.44,2601.3,2601.1,0.16958228]
[1724256841529,7.44,2601.3,2600.8,6.14819]
[1724256841710,7.44,2601.3,2601.2,0.16935013]
[1724256841879,7.44,2601.3,2600.8,6.14819]
[1724256842080,7.44,2601.3,2601.0,3.84464]
[1724256842438,7.44,2601.3,2601.1,0.16932753]
[1724256842933,3.84409,2601.4,2600.9,0.71176361]
[1724256843102,3.84409,2601.4,2601.2,0.16922045]
[1724256843305,3.84409,2601.4,2600.8,2.3033]
[1724256843306,3.84454,2601.1,2600.8,2.3033]
[1724256843505,3.84452,2601.2,2600.8,2.3033]
[1724256843817,3.84452,2601.2,2600.9,0.16954171]
[1724256845190,3.84457,2601.1,2600.9,0.16954171]
[1724256845387,3.84457,2601.1,2600.6,3.84518]
[1724256845700,3.84452,2601.1,2600.6,3.84518]
[1724256845901,7.68901,2601.2,2600.7,0.16975593]
[1724256846118,3.84455,2601.1,2600.7,0.16975593]
[1724256846435,3.84472,2601.0,2600.7,0.16975593]
[1724256846734,3.84472,2601.0,2600.5,6.29276]
[1724256846943,3.84455,2601.1,2600.8,0.16964882]
[1724256847151,3.84455,2601.1,2600.6,3.84524]
[1724256847529,3.84455,2601.1,2600.7,0.16936676]
[1724256847530,3.84483,2600.9,2600.7,0.16936676]
[1724256847737,3.84497,2600.8,2600.7,0.16936676]
[1724256848051,3.84468,2601.0,2600.3,3.84561]
[1724256848204,3.84485,2600.9,2600.7,0.16942234]
[1724256848405,3.84485,2600.9,2600.5,3.84531]
[1724256848653,3.84485,2600.9,2600.8,0.16931522]
[1724256848861,4.613795,2600.9,2600.5,3.84531]
[1724256849024,3.8446,2601.1,2600.8,0.16931522]
[1724256849208,3.84472,2601.0,2600.5,3.84527]
[1724256849409,3.84472,2601.0,2600.9,0.16931465]
[1724256849605,10.16228,2601.2,2600.5,3.84531]
[1724256849904,10.16228,2601.2,2600.7,3.84503]
[1724256849905,3.84446,2601.2,2600.7,3.84503]
[1724256850104,3.84426,2601.3,2600.8,0.16946808]
[1724256850406,3.84415,2601.4,2600.8,0.16946808]
[1724256850407,3.84415,2601.4,2600.8,3.84484]
[1724256850606,3.84431,2601.3,2600.7,8.703304]
[1724256850803,3.84431,2601.3,2600.9,0.16935634]
[1724256851032,3.84431,2601.3,2600.8,0.16946345]
[1724256851225,3.84439,2601.2,2600.7,4.858274]
[1724256851432,7.68884,2601.2,2600.9,0.16935634]
[1724256851808,7.68884,2601.2,2600.7,3.84503]
[1724256852006,3.84452,2601.1,2600.6,6.28735]
[1724256852410,3.84452,2601.1,2600.7,0.16957056]
[1724256852610,3.84485,2600.9,2600.7,0.16957056]
[1724256852854,3.84497,2600.8,2600.7,0.16957056]
[1724256853041,3.84513,2600.7,2600.2,3.84576]
[1724256853555,3.84526,2600.6,2600.1,3.84597]
[1724256854116,3.84513,2600.7,2600.1,3.84597]
[1724256854363,3.84513,2600.7,2600.2,3.84583]
[1724256855357,2.3062,2600.6,2600.0,3.84601]
[1724256855562,2.3062,2600.6,2599.7,2.3639]
[1724256855563,3.84556,2600.4,2599.7,2.3639]
[1724256855779,3.84556,2600.4,2599.7,6.21048]
[1724256855780,3.84587,2600.2,2599.7,6.21048]
[1724256856084,3.84556,2600.4,2599.8,3.84643]
[1724256856288,3.84541,2600.5,2599.9,3.84628]
[1724256856674,6.15155,2600.6,2599.9,3.84628]
[1724256856840,3.84506,2600.8,2600.2,3.84577]
[1724256857040,6.84511,2600.7,2600.2,3.84577]
[1724256857452,3.8458,2600.3,2599.8,2.2624]
[1724256857792,3.8458,2600.3,2599.8,6.10884]
[1724256858002,3.8458,2600.3,2599.5,7.69355]
[1724256858003,3.84608,2600.1,2599.5,7.69355]
[1724256858147,3.84608,2600.1,2599.5,3.84675]
[1724256858497,3.84624,2600.0,2599.5,3.84675]
[1724256858698,8.209131,2600.3,2599.5,3.84675]
[1724256858865,3.84609,2600.1,2599.6,3.84662]
[1724256859649,3.84617,2600.0,2599.4,6.2184]
[1724256860075,3.84609,2600.1,2599.5,3.84687]
[1724256860292,1.06412333,2600.2,2599.6,3.84673]
[1724256860590,11.28579,2600.3,2599.7,3.84654]
[1724256860992,7.44,2600.3,2599.8,6.16906]
[1724256861192,7.44,2600.3,2599.8,10.01542]
[1724256861345,7.44,2600.3,2599.9,3.84616]
[1724256861544,7.44,2600.3,2599.9,7.69235]
[1724256861771,7.44,2600.3,2599.9,4.847665]
[1724256862046,7.44,2600.3,2600.0,0.16525255]
[1724256862243,7.44,2600.3,2600.1,3.846]
[1724256862480,11.28519,2600.7,2600.2,4.01078407]
[1724256862787,11.28519,2600.7,2600.2,0.16496407]
[1724256863087,7.44,2600.7,2600.3,6.1092]
[1724256863288,7.44,2600.7,2600.4,0.16474977]
[1724256863649,7.44,2600.7,2600.1,3.84588]
[1724256863988,7.44,2600.7,2600.3,3.8457]
[1724256864395,11.28513,2600.7,2600.4,0.16462465]
[1724256864686,11.28513,2600.7,2600.1,3.84588]
[1724256864888,11.28513,2600.7,2600.2,0.16483895]
[1724256864889,3.84527,2600.6,2600.2,0.16483895]
[1724256865697,7.44,2600.7,2600.2,0.16483895]
[1724256865846,7.44,2600.7,2600.2,4.01067895]
[1724256866359,7.44,2600.7,2600.2,4.01058895]
[1724256866565,7.44,2600.7,2600.6,3.84526]
[1724256866808,19.67,2601.1,2600.7,6.16439]
[1724256867003,11.28431,2601.3,2600.8,3.84496]
[1724256867285,11.28431,2601.3,2600.8,4.00899275]
[1724256867642,11.28431,2601.3,2600.8,0.16411275]
[1724256867846,11.28431,2601.3,2600.6,7.69036]
[1724256867847,3.84456,2601.1,2600.6,3.84517]
[1724256868243,3.84456,2601.1,2600.7,0.1642106]
[1724256868495,3.84456,2601.1,2600.5,6.12728]
[1724256868700,3.84491,2600.9,2600.6,0.16393322]
[1724256868866,3.84491,2600.9,2600.4,3.84546]
[1724256869067,3.84491,2600.9,2600.5,0.16404035]
[1724256870781,3.8449,2600.9,2600.5,0.16404035]
[1724256870982,3.8449,2600.9,2600.5,4.00943035]
[1724256871180,3.84469,2601.0,2600.5,4.00943035]
[1724256871496,3.84469,2601.0,2600.6,3.84524]
[1724256871795,3.84469,2601.0,2600.7,0.1638261]
[1724256872094,3.84442,2601.2,2600.7,0.1638261]
[1724256872294,7.44,2601.3,2600.7,0.1638261]
[1724256872501,5.210546,2601.2,2600.7,4.0089361]
[1724256873696,3.84474,2601.0,2600.7,0.1638261]
[1724256873879,3.84474,2601.0,2600.5,3.8454]
[1724256874254,3.84474,2601.0,2600.6,0.16393322]
[1724256874599,2.41,2600.9,2600.6,0.16393322]
[1724256874768,4.7502766,2601.0,2600.6,0.16393322]
[1724256875170,8.5950466,2601.0,2600.6,0.16393322]
[1724256875350,4.7502766,2601.0,2600.6,0.16393322]
[1724256875800,0.9055366,2601.0,2600.6,0.16393322]
[1724256875958,3.84505,2600.8,2600.6,0.16393322]
[1724256876156,6.12795,2601.1,2600.5,3.84538]
[1724256876457,6.12795,2601.1,2600.4,3.84546]
[1724256876657,9.97261,2601.1,2600.6,3.84526]
[1724256876855,4.457475,2601.0,2600.6,3.84526]
[1724256877470,3.84452,2601.1,2600.6,3.84517]
[1724256877670,3.84452,2601.1,2600.7,4.00899095]
[1724256878659,3.84452,2601.1,2600.7,0.16389095]
[1724256879173,3.84469,2601.0,2600.7,0.16389095]
[1724256879378,3.84489,2600.9,2600.7,0.16389095]
[1724256879584,3.84497,2600.8,2600.7,0.16389095]
[1724256879900,4.613848,2600.9,2600.3,6.11319]
[1724256879901,3.158158,2600.9,2600.3,6.11319]
[1724256880103,3.84504,2600.8,2600.3,3.84559]
[1724256880403,3.84489,2600.9,2600.4,6.11301]
[1724256882197,3.84474,2601.0,2600.5,3.8454]
[1724256882696,3.84454,2601.1,2600.6,4.00926996]
[1724256883061,3.84469,2601.0,2600.6,4.00926996]
[1724256883585,3.84452,2601.1,2600.6,7.85443996]
[1724256883763,3.84452,2601.1,2600.6,4.00926996]
[1724256884157,3.8447,2601.0,2600.6,4.00926996]
[1724256884378,5.357419,2601.1,2600.6,0.16409996]
[1724256884613,3.84497,2600.8,2600.6,0.16409996]
[1724256884980,3.84497,2600.8,2600.4,6.11315]
[1724256885160,3.84497,2600.8,2600.7,0.16394651]
[1724256885360,3.84497,2600.8,2600.4,2.2676]
[1724256885561,3.84497,2600.8,2600.7,0.16394651]
[1724256885813,3.84497,2600.8,2600.1,6.30488]
[1724256885814,3.84518,2600.7,2600.2,3.84583]
[1724256886022,3.84518,2600.7,2600.3,3.8457]
[1724256887216,7.68986,2600.9,2600.3,7.69129]
[1724256887422,3.8449,2600.9,2600.3,7.69129]
[1724256887924,3.84499,2600.8,2600.3,3.84559]
[1724256888276,3.8449,2600.9,2600.3,3.84559]
[1724256888277,3.84513,2600.7,2600.3,3.84559]
[1724256888620,3.84513,2600.7,2600.2,3.84584]
[1724256889307,3.84497,2600.8,2600.3,7.6913]
[1724256889626,3.84497,2600.8,2600.3,7.69122]
[1724256889920,3.84497,2600.8,2600.3,7.69123]
[1724256890129,3.84497,2600.8,2600.3,3.8456]
[1724256890508,3.84481,2601.0,2600.4,3.84549]
[1724256890826,3.84465,2601.1,2600.6,3.84519]
[1724256891626,11.28427,2601.3,2600.8,3.84489]
[1724256891959,7.44,2601.3,2601.1,7.68904]
[1724256892116,7.44,2601.3,2601.2,2.3677]
[1724256892455,7.44,2601.3,2601.2,6.21207]
[1724256892758,7.44,2601.3,2601.2,7.217721]
[1724256893958,7.44,2601.3,2601.2,3.373351]
[1724256894166,7.44,2601.3,2601.2,2.3677]
[1724256896174,7.44,2601.3,2601.2,6.21207]
[1724256896371,19.67,2601.5,2601.3,3.84419]
[1724256896606,11.28345,2601.9,2601.4,3.84405]
[1724256896901,19.67,2602.1,2601.5,2.55227578]
[1724256897125,3.8426,2602.4,2601.9,3.84327]
[1724256897293,3.8426,2602.4,2601.9,6.31867]
[1724256897473,3.84276,2602.3,2602.0,0.16232777]
[1724256897688,3.84297,2602.2,2602.0,0.16232777]
[1724256897900,3.84297,2602.2,2601.7,3.84352]
[1724256898106,4.971036,2602.3,2601.8,0.1624492]
[1724256898312,3.84323,2602.0,2601.8,0.1624492]
[1724256898660,3.84323,2602.0,2601.6,2.4506]
[1724256898957,3.84323,2602.0,2601.7,0.16255623]
[1724256899377,3.84323,2602.0,2601.6,2.4506]
[1724256899580,7.68656,2602.0,2601.8,0.1624492]
[1724256899908,3.84349,2601.8,2601.7,0.16255623]
[1724256900067,3.84334,2601.9,2601.4,2.3339]
[1724256900399,3.84334,2601.9,2600.4,3.84553]
[1724256900400,3.84423,2601.3,2600.8,2.3339]
[1724256900603,2.4282,2601.7,2600.3,6.17949]
[1724256900604,3.84482,2600.9,2600.3,6.17949]
[1724256901404,3.84458,2601.1,2600.3,6.17949]
[1724256901613,3.84458,2601.1,2600.5,3.84539]
[1724256902102,3.8443,2601.3,2600.5,3.84535]
[1724256902307,3.8443,2601.3,2600.4,0.617949]
[1724256902506,3.84398,2601.5,2600.8,3.84488]
[1724256902507,7.68803,2601.5,2600.8,3.84488]
[1724256902807,4.51088003,2601.4,2600.8,3.84488]
[1724256904265,3.84424,2601.3,2600.7,3.84502]
[1724256904481,7.68859,2601.3,2600.7,3.84502]
[1724256904807,3.84424,2601.3,2600.7,3.84502]
[1724256905014,3.84439,2601.2,2600.7,3.84502]
[1724256905305,3.84424,2601.3,2600.7,3.84502]
[1724256905977,7.68855,2601.3,2600.7,3.84502]
[1724256906186,8.524083,2601.3,2600.7,3.84502]
[1724256906381,3.84453,2601.1,2600.5,6.33822]
[1724256906570,3.84478,2601.0,2600.3,10.69123]
[1724256906766,3.84488,2600.9,2600.3,10.69123]
[1724256907074,3.84488,2600.9,2600.4,3.84554]
[1724256907300,3.84463,2601.1,2600.5,3.8453]
[1724256907517,3.84463,2601.1,2600.3,4.298413]
[1724256907518,6.18406,2601.4,2600.6,3.84521]
[1724256907715,10.02825,2601.4,2600.8,3.84488]
[1724256908078,3.84416,2601.4,2600.9,3.8448]
[1724256908324,4.44689674,2601.6,2601.0,3.84465]
[1724256908493,9.26947641,2601.6,2601.0,3.84457]
[1724256908887,0.60301674,2601.6,2601.1,3.84444]
[1724256909094,3.84379,2601.6,2601.1,6.32334]
[1724256909408,3.84352,2601.8,2601.3,3.84422]
[1724256909962,3.84352,2601.8,2601.4,0.16229912]
[1724256910290,0.60291321,2602.0,2601.5,3.84392]
[1724256910544,3.84329,2602.0,2601.5,3.84392]